bitfinex-derivatives/quotes_ETHF0:USTF0_20260128
["timestamp","ask_amount","ask_price","bid_price","bid_amount"]
[1769571397032,0.16635,3010.0,3009.2,2.00497596]
[1769571397231,3.07622158,3009.9,3009.2,2.00497596]
[1769571397440,0.16635,3010.0,3009.2,2.00497596]
[1769571397641,3.07622156,3009.9,3009.2,2.00497596]
[1769571397836,2.00481141,3009.8,3008.7,0.14411089]
[1769571398038,0.14394634,3009.6,3008.7,0.14411089]
[1769571398445,0.16637,3009.7,3008.7,0.14411089]
[1769571398639,0.16637,3009.7,3008.9,0.14411089]
[1769571403447,0.31031634,3009.7,3008.9,0.14411089]
[1769571405347,0.14394634,3009.6,3008.9,0.14411089]
[1769571408155,0.14394634,3009.6,3008.6,0.14411089]
[1769571410651,0.16637,3009.7,3008.8,0.14411089]
[1769571412766,0.31031634,3009.7,3008.8,0.14411089]
[1769571412970,0.14394634,3009.6,3008.8,0.14411089]
[1769571418477,3.07147268,3009.5,3008.8,0.14411089]
[1769571418780,0.14394634,3009.6,3008.8,0.14411089]
[1769571419079,3.07147257,3009.5,3008.8,0.14411089]
[1769571419272,0.13537033,3009.5,3008.6,0.1337245]
[1769571420177,3.20866881,3009.4,3008.6,0.1337245]
[1769571420381,0.13537033,3009.0,3008.1,0.1337245]
[1769571421078,0.13537033,3008.8,3008.1,0.1337245]
[1769571424580,0.13537033,3008.8,3007.8,0.1337245]
[1769571424980,0.13537033,3008.8,3008.0,0.1337245]
[1769571426471,0.13537033,3008.6,3007.8,0.1337245]
[1769571426679,0.13537033,3008.4,3007.4,0.13746013]
[1769571427585,0.13537033,3008.3,3007.4,0.13746013]
[1769571428685,0.13537033,3008.2,3007.4,0.13746013]
[1769571428878,0.13825266,3008.2,3007.4,0.13746013]
[1769571429480,0.30470266,3008.2,3007.4,0.13746013]
[1769571429881,0.13537033,3007.8,3006.9,5.10966976]
[1769571430082,0.13537033,3007.7,3006.9,0.1337245]
[1769571430288,0.13537033,3007.6,3006.9,0.1337245]
[1769571430780,0.16649,3007.5,3006.6,0.1337245]
[1769571430981,0.13537033,3007.1,3005.9,0.1337245]
[1769571431381,1.952,3007.5,3005.9,0.1337245]
[1769571431382,0.30189033,3007.0,3005.9,0.1337245]
[1769571431585,0.13537033,3006.9,3005.9,0.1337245]
[1769571431988,0.13537033,3006.9,3005.9,0.13792318]
[1769571433277,0.13537033,3006.9,3005.9,0.00419868]
[1769571433480,0.13537033,3006.7,3005.9,0.00419868]
[1769571434289,0.13537033,3006.6,3005.6,0.1337245]
[1769571435287,0.13537033,3006.6,3005.6,0.13680389]
[1769571436290,0.13537033,3006.5,3005.6,0.00307939]
[1769571436489,0.13537033,3006.4,3005.6,0.00307939]
[1769571438094,0.13537033,3006.4,3005.6,0.13680389]
[1769571443402,0.13537033,3006.2,3005.3,0.1337245]
[1769571444397,0.13537033,3006.2,3005.3,0.13784579]
[1769571444896,0.13537033,3006.2,3005.3,0.00412129]
[1769571446197,0.13537033,3006.2,3005.1,0.14313506]
[1769571446903,0.14803872,3006.1,3005.1,0.14313506]
[1769571447398,0.14803872,3006.1,3005.1,0.14608584]
[1769571447600,0.31461872,3005.9,3005.1,0.14608584]
[1769571447795,0.31849361,3005.9,3005.1,0.14608584]
[1769571448002,0.14803872,3005.8,3005.1,0.14608584]
[1769571451704,0.14803872,3005.8,3005.1,0.00295078]
[1769571452297,0.31461872,3005.8,3005.1,0.00295078]
[1769571452498,0.14803872,3005.7,3004.8,0.61909172]
[1769571453503,0.14803872,3005.7,3004.8,0.62254656]
[1769571453905,0.14803872,3005.6,3004.8,0.76568162]
[1769571455506,0.31462872,3005.6,3004.8,0.76568162]
[1769571456302,0.16659,3005.6,3004.9,0.14313506]
[1769571465620,0.00387489,3005.9,3004.9,0.14313506]
[1769571465921,0.14803872,3006.7,3005.0,0.14313506]
[1769571466127,3.0848958,3006.6,3005.8,0.14313506]
[1769571466420,0.31457872,3006.6,3005.8,0.14313506]
[1769571466617,0.14803872,3006.5,3005.6,0.14313506]
[1769571466920,0.14803872,3006.1,3005.1,0.14313506]
[1769571467221,0.31461872,3005.8,3004.9,0.14313506]
[1769571467422,0.14803872,3005.7,3004.9,0.14313506]
[1769571468725,3.23919434,3005.6,3004.8,0.62254656]
[1769571468929,3.23907283,3005.5,3004.8,0.62254656]
[1769571469129,0.14803872,3005.5,3004.8,0.62254656]
[1769571470224,0.31464872,3005.3,3004.3,0.14313506]
[1769571471126,3.09206508,3005.2,3004.3,0.14313506]
[1769571471326,0.31464872,3005.3,3004.3,0.14656954]
[1769571471530,3.09206244,3005.2,3004.3,0.14656954]
[1769571471729,0.31464872,3005.3,3004.3,0.14656954]
[1769571471931,3.09205615,3005.2,3004.3,0.14656954]
[1769571472133,0.14803872,3004.9,3003.6,0.14313506]
[1769571472427,0.14803872,3004.7,3003.6,0.14313506]
[1769571473225,0.14803872,3004.7,3003.6,0.14683996]
[1769571473828,3.08449786,3004.6,3003.6,0.14683996]
[1769571474028,0.14803872,3004.6,3003.6,0.14683996]
[1769571474332,0.16665,3004.6,3003.6,0.14683996]
[1769571476630,0.16662,3005.1,3003.6,0.14683996]
[1769571476934,3.08136006,3005.0,3003.6,0.14683996]
[1769571477122,3.08136006,3004.9,3003.6,0.14683996]
[1769571477328,0.16662,3005.1,3003.6,0.14683996]
[1769571477524,3.08081298,3005.0,3003.6,0.14683996]
[1769571477835,0.16662,3005.1,3003.6,0.14683996]
[1769571478736,0.13601603,3004.9,3003.6,0.14683996]
[1769571478936,0.13601603,3004.7,3003.6,0.14683996]
[1769571479137,0.13601603,3004.5,3003.6,0.14683996]
[1769571482236,0.16665,3004.6,3003.6,0.14683996]
[1769571482436,0.13601603,3005.1,3003.6,0.14683996]
[1769571482631,3.07827147,3005.0,3003.6,0.14683996]
[1769571482831,0.13601603,3005.1,3003.6,0.14683996]
[1769571483028,0.30263603,3005.1,3003.6,0.14683996]
[1769571483536,0.16662,3005.1,3003.6,0.14683996]
[1769571485737,0.16659,3005.6,3003.8,0.1384703]
[1769571485938,0.16659,3005.6,3003.9,0.1384703]
[1769571486732,0.13601603,3006.0,3004.1,0.1384703]
[1769571486933,0.13601603,3006.0,3004.2,0.1384703]
[1769571487236,0.30258603,3006.0,3004.2,0.1384703]
[1769571487536,0.30258603,3006.0,3004.3,0.1384703]
[1769571487734,0.30260603,3005.7,3004.3,0.1384703]
[1769571488236,0.13601603,3006.0,3004.3,0.1384703]
[1769571488837,0.13601603,3005.8,3004.3,0.1384703]
[1769571489537,2.00044943,3005.8,3004.6,0.1384703]
[1769571490033,2.00044943,3005.6,3004.6,0.1384703]
[1769571490428,0.13601603,3005.3,3004.3,0.1384703]
[1769571494445,1.8644334,3005.4,3004.3,0.1384703]
[1769571495043,2.00044943,3005.4,3004.3,0.1384703]
[1769571495542,0.13601603,3005.4,3004.3,0.1384703]
[1769571496944,0.13601603,3005.3,3004.3,0.1384703]
[1769571497138,0.13601603,3005.2,3004.3,0.1384703]
[1769571500444,0.30263603,3005.2,3004.3,0.1384703]
[1769571500743,0.13601603,3005.1,3004.3,0.1384703]
[1769571502140,0.13601603,3004.9,3003.7,0.1384703]
[1769571502939,0.13601603,3004.8,3003.7,0.1384703]
[1769571503147,0.13601603,3004.7,3003.7,0.1384703]
[1769571503650,0.16664,3004.8,3003.7,0.1384703]
[1769571504249,0.30600896,3004.8,3003.7,0.1384703]
[1769571505052,0.14233633,3004.7,3003.7,0.1384703]
[1769571508149,0.16664,3004.8,3003.7,0.1384703]
[1769571508851,0.14233633,3005.3,3003.7,0.1384703]
[1769571509144,0.14233633,3005.3,3003.8,0.13857138]
[1769571509452,0.16661,3005.4,3004.0,0.13857138]
[1769571513352,0.16661,3005.4,3004.1,0.13857138]
[1769571515657,0.16661,3005.4,3004.7,0.13857138]
[1769571515955,0.16661,3005.4,3004.8,2.00293856]
[1769571516350,0.14233633,3005.7,3004.8,2.00293856]
[1769571516559,2.572,3006.0,3005.4,1.86436718]
[1769571516560,0.30890633,3006.0,3005.4,1.86436718]
[1769571517060,0.30890633,3006.0,3005.2,2.00293856]
[1769571518651,3.08484011,3005.9,3005.2,2.00293856]
[1769571518959,0.14233633,3005.7,3004.6,2.00293856]
[1769571519159,0.14233633,3005.7,3004.7,0.13857138]
[1769571529566,0.16658,3005.8,3004.7,0.13857138]
[1769571533172,0.14233633,3005.7,3004.7,0.13857138]
[1769571541576,0.1366046,3005.4,3004.4,4.97594526]
[1769571541779,0.1366046,3005.3,3004.3,0.13744453]
[1769571542369,0.1366046,3005.3,3004.3,2.00234669]
[1769571542579,0.16661,3005.4,3004.6,0.13744453]
[1769571542780,0.1366046,3005.9,3005.0,0.13744453]
[1769571543086,0.1366046,3005.7,3005.0,0.13744453]
[1769571543277,3.09453083,3005.6,3005.0,0.13744453]
[1769571544676,3.09530247,3005.5,3005.0,0.13744453]
[1769571544883,0.1366046,3005.7,3005.0,0.13744453]
[1769571545084,3.09530219,3005.6,3005.0,0.13744453]
[1769571545274,3.09530219,3005.5,3005.0,0.13744453]
[1769571545573,0.1366046,3005.7,3005.0,0.13744453]
[1769571545774,3.09568262,3005.6,3005.0,0.13744453]
[1769571546089,3.09568262,3005.5,3005.0,0.13744453]
[1769571546379,0.1366046,3005.7,3005.0,0.13744453]
[1769571546583,3.0959758,3005.6,3005.0,0.13744453]
[1769571546784,3.0959758,3005.5,3005.0,0.13744453]
[1769571546981,0.1366046,3005.7,3005.0,0.13744453]
[1769571547175,3.09597659,3005.6,3005.0,0.13744453]
[1769571547479,3.09597659,3005.5,3005.0,0.13744453]
[1769571547683,0.1366046,3005.7,3005.0,0.13744453]
[1769571547883,3.09693367,3005.6,3005.0,0.13744453]
[1769571548181,3.09693367,3005.5,3005.0,0.13744453]
[1769571548385,0.1366046,3005.7,3005.0,0.13744453]
[1769571548582,3.09731786,3005.6,3005.0,0.13744453]
[1769571548782,3.09731786,3005.5,3005.0,0.13744453]
[1769571548984,0.1366046,3005.7,3005.0,0.13744453]
[1769571549185,3.09751039,3005.6,3005.0,0.13744453]
[1769571549384,3.09751039,3005.5,3005.0,0.13744453]
[1769571549577,0.1366046,3005.7,3005.0,0.13744453]
[1769571549778,3.09763734,3005.6,3005.0,0.13744453]
[1769571550079,3.09763734,3005.5,3005.0,0.13744453]
[1769571550386,0.1366046,3005.7,3005.0,0.13744453]
[1769571550684,3.09760004,3005.6,3005.0,0.13744453]
[1769571550876,0.1366046,3005.7,3005.0,0.13744453]
[1769571551077,3.09759991,3005.6,3005.0,0.13744453]
[1769571551370,0.1366046,3005.7,3005.0,0.13744453]
[1769571551574,3.09783447,3005.6,3005.0,0.13744453]
[1769571551776,0.1366046,3005.7,3005.0,0.13744453]
[1769571552071,3.09828776,3005.6,3005.0,0.13744453]
[1769571552273,0.1366046,3005.7,3005.0,0.13744453]
[1769571552470,3.09827572,3005.6,3005.0,0.13744453]
[1769571552680,0.1366046,3005.7,3005.0,0.13744453]
[1769571552881,3.09833404,3005.6,3005.0,0.13744453]
[1769571553084,0.1366046,3005.7,3005.0,0.13744453]
[1769571553282,0.16658,3005.8,3005.0,0.13744453]
[1769571553483,3.09850516,3005.7,3005.0,0.13744453]
[1769571553778,0.16658,3005.8,3005.0,0.13744453]
[1769571553973,3.09851017,3005.7,3005.0,0.13744453]
[1769571554174,0.16658,3005.8,3005.0,0.13744453]
[1769571554483,3.0985555,3005.7,3005.0,0.13744453]
[1769571554681,0.16658,3005.8,3005.0,0.13744453]
[1769571554888,3.0985371,3005.7,3005.0,0.13744453]
[1769571555082,0.16658,3005.8,3005.0,0.13744453]
[1769571555282,3.0985371,3005.7,3005.0,0.13744453]
[1769571555484,0.16658,3005.8,3005.0,0.13744453]
[1769571555684,3.09857029,3005.7,3005.0,0.13744453]
[1769571555882,0.1366046,3005.7,3004.7,0.13744453]
[1769571558595,3.09868129,3005.6,3004.7,0.13744453]
[1769571558793,3.09868129,3005.5,3004.7,0.13744453]
[1769571559085,0.1366046,3005.7,3004.7,0.13744453]
[1769571559288,3.09867842,3005.6,3004.7,0.13744453]
[1769571559490,3.09867842,3005.5,3004.7,0.13744453]
[1769571559692,0.1366046,3005.7,3004.7,0.13744453]
[1769571559894,3.09873169,3005.6,3004.7,0.13744453]
[1769571560082,3.09873169,3005.5,3004.7,0.13744453]
[1769571560282,0.1366046,3005.7,3004.7,0.13744453]
[1769571560491,3.09875904,3005.6,3004.7,0.13744453]
[1769571560692,3.09875904,3005.5,3004.7,0.13744453]
[1769571560892,0.1366046,3005.7,3004.7,0.13744453]
[1769571561092,3.09875354,3005.6,3004.7,0.13744453]
[1769571561391,3.09875354,3005.5,3004.7,0.13744453]
[1769571561589,0.1366046,3005.7,3004.7,0.13744453]
[1769571561795,0.1366046,3005.5,3004.7,0.13744453]
[1769571561995,0.1366046,3005.7,3004.7,0.13744453]
[1769571562191,3.09878511,3005.6,3004.7,0.13744453]
[1769571562489,3.09878511,3005.5,3004.7,0.13744453]
[1769571562688,0.1366046,3005.7,3004.7,0.13744453]
[1769571562889,3.09882033,3005.6,3004.7,0.13744453]
[1769571563089,3.09882033,3005.5,3004.7,0.13744453]
[1769571563289,0.1366046,3005.7,3004.7,0.13744453]
[1769571563488,3.10060121,3005.6,3004.7,0.13744453]
[1769571563688,3.10060121,3005.5,3004.7,0.13744453]
[1769571563890,0.1366046,3005.7,3004.7,0.13744453]
[1769571564092,3.10062358,3005.6,3004.7,0.13744453]
[1769571564393,3.10062358,3005.5,3004.7,0.13744453]
[1769571564694,0.1366046,3005.7,3004.7,0.13744453]
[1769571564994,3.23835774,3005.6,3004.7,0.13744453]
[1769571565196,3.10065852,3005.5,3004.7,0.13744453]
[1769571565389,0.13769922,3005.6,3004.7,0.13744453]
[1769571565590,3.10068653,3005.5,3004.7,0.13744453]
[1769571565791,0.13769922,3005.6,3004.7,0.13744453]
[1769571565995,3.10078768,3005.5,3004.7,0.13744453]
[1769571566293,0.13769922,3005.6,3004.7,0.13744453]
[1769571566485,3.1011002,3005.5,3004.7,0.13744453]
[1769571566685,0.13769922,3005.6,3004.7,0.13744453]
[1769571566986,3.10110101,3005.5,3004.7,0.13744453]
[1769571567285,0.13769922,3005.6,3004.7,0.13744453]
[1769571567485,3.10112482,3005.5,3004.7,0.13744453]
[1769571567684,0.13769922,3005.6,3004.7,0.13744453]
[1769571567889,3.10113772,3005.5,3004.7,0.13744453]
[1769571568088,0.13769922,3005.6,3004.7,0.13744453]
[1769571568292,3.10113771,3005.5,3004.7,0.13744453]
[1769571568493,0.13769922,3005.6,3004.7,0.13744453]
[1769571572598,0.16658,3005.8,3004.7,0.13744453]
[1769571572801,3.10156387,3005.7,3004.7,0.13744453]
[1769571572998,0.13769922,3006.2,3005.2,0.13457365]
[1769571576200,0.13769922,3006.2,3005.0,4.97594526]
[1769571576501,0.13769922,3006.1,3004.9,5.11051891]
[1769571578002,0.13769922,3006.1,3004.9,0.13457365]
[1769571578902,0.30426922,3006.1,3004.9,0.13457365]
[1769571579202,0.13769922,3006.0,3004.8,2.18957365]
[1769571579504,0.13769922,3006.0,3004.8,0.13457365]
[1769571580110,9.31245105,3006.5,3004.4,5.97113431]
[1769571580111,0.13769922,3005.8,3004.4,5.11051891]
[1769571580901,0.13769922,3005.8,3004.5,0.13457365]
[1769571585212,0.13769922,3005.8,3004.8,0.13457365]
[1769571585404,0.16658,3005.9,3004.8,0.13457365]
[1769571585806,0.30427922,3005.9,3004.8,0.13457365]
[1769571589717,0.13769922,3006.1,3004.8,0.13457365]
[1769571590920,0.13769922,3006.1,3005.0,0.13457365]
[1769571599639,0.14821918,3006.0,3004.7,7.1879886]
[1769571599935,0.14821918,3006.0,3004.8,0.14804334]
[1769571600943,0.14821918,3005.8,3004.5,4.97594526]
[1769571601236,0.14821918,3005.6,3004.5,0.14804334]
[1769571601426,0.14821918,3005.3,3004.5,0.14804334]
[1769571601631,0.14821918,3005.3,3004.3,0.14804334]
[1769571602034,0.1666,3005.4,3004.3,0.14804334]
[1769571602639,0.31481918,3005.4,3004.3,0.14804334]
[1769571603735,0.1666,3005.4,3004.3,0.14804334]
[1769571605326,0.14821918,3005.6,3004.3,0.14804334]
[1769571606540,0.14821918,3005.8,3004.7,0.14804334]
[1769571606749,0.16658,3005.9,3004.7,0.14804334]
[1769571607037,0.31479918,3005.9,3004.7,0.14804334]
[1769571607240,0.14821918,3005.7,3004.7,0.14804334]
[1769571607438,0.14821918,3005.7,3004.6,2.10204334]
[1769571607745,0.14821918,3005.7,3004.6,0.14804334]
[1769571607935,0.14821918,3005.7,3004.4,4.97594526]
[1769571607936,0.14821918,3005.6,3004.4,0.14804334]
[1769571608334,0.14821918,3005.4,3004.4,0.14804334]
[1769571608942,0.14821918,3005.4,3004.2,0.14804334]
[1769571609639,0.14821918,3005.4,3004.3,1.86471425]
[1769571610636,0.14821918,3005.4,3004.3,2.01275759]
[1769571610831,0.31481918,3005.4,3004.3,0.14804334]
[1769571611044,0.14821918,3005.3,3004.3,0.14804334]
[1769571611942,0.14821918,3005.3,3004.4,0.14804334]
[1769571613144,0.14821918,3005.3,3004.6,0.14804334]
[1769571621948,0.14821918,3005.3,3004.3,2.01275759]
[1769571622249,0.14821918,3005.2,3004.3,2.01275759]
[1769571623344,0.14821918,3005.1,3004.1,2.01275759]
[1769571625255,0.14821918,3005.1,3004.2,0.14678565]
[1769571625453,0.14821918,3005.1,3004.3,1.86471425]
[1769571625653,0.14821918,3005.1,3004.3,2.0114999]
[1769571627256,0.14821918,3005.1,3004.4,0.14678565]
[1769571627559,0.16662,3005.2,3004.5,2.0114999]
[1769571628061,0.14260589,3005.5,3004.9,1.86471425]
[1769571628356,3.11905239,3005.4,3004.9,0.14678565]
[1769571628559,0.14260589,3005.5,3004.9,0.14678565]
[1769571628757,3.12021209,3005.4,3004.9,0.14678565]
[1769571628960,0.14260589,3005.5,3004.9,0.14678565]
[1769571629255,0.30919589,3005.7,3004.9,0.14678565]
[1769571629457,3.12200267,3005.6,3004.9,0.14678565]
[1769571629756,0.30919589,3005.7,3004.9,0.14678565]
[1769571629961,3.12200248,3005.6,3004.9,0.14678565]
[1769571630152,0.30919589,3005.7,3004.9,2.0114999]
[1769571630352,3.12202202,3005.6,3004.9,2.0114999]
[1769571630554,0.30919589,3005.7,3004.9,2.0114999]
[1769571630859,3.12207319,3005.6,3004.9,2.0114999]
[1769571631059,0.30919589,3005.7,3004.9,2.0114999]
[1769571631356,3.12208648,3005.6,3005.0,0.14678565]
[1769571631556,0.30919589,3005.7,3005.0,0.14678565]
[1769571631764,0.16659,3005.7,3005.2,0.14678565]
[1769571632062,2.78360589,3006.0,3005.2,0.14678565]
[1769571632352,2.641,3006.0,3005.4,0.14678565]
[1769571632559,3.47460589,3006.2,3005.4,0.14678565]
[1769571632755,3.12185339,3006.1,3005.4,0.14678565]
[1769571632956,0.14260589,3005.9,3005.1,0.14678565]
[1769571642258,0.14260589,3005.8,3005.1,0.14678565]
[1769571642959,0.30918589,3005.8,3005.0,42.0]
[1769571643160,0.14260589,3005.5,3005.0,42.0]
[1769571645566,0.14260589,3005.5,3005.0,42.14678565]
[1769571646464,0.16659,3005.6,3005.0,42.14678565]
[1769571651270,0.16659,3005.6,3005.1,0.14678565]
[1769571651865,0.30919589,3005.6,3005.0,42.0]
[1769571652972,0.30919589,3005.6,3005.0,42.14678565]
[1769571654069,0.16659,3005.6,3005.0,42.14678565]
[1769571655977,0.13966488,3005.4,3005.0,42.0]
[1769571656174,0.13966488,3005.4,3005.0,41.24849266]
[1769571656470,0.13966488,3005.4,3005.0,39.85625834]
[1769571656672,0.13966488,3005.4,3005.0,21.90372998]
[1769571656673,0.16662,3005.2,3005.0,21.90372998]
[1769571656872,3.2538456,3005.1,3005.0,20.72793545]
[1769571657176,3.4204656,3005.1,3005.0,19.43028811]
[1769571657377,3.4204656,3005.1,3005.0,18.35944433]
[1769571657576,3.4204656,3005.1,3005.0,17.69232123]
[1769571657777,3.28080072,3005.1,3005.0,16.62727988]
[1769571657982,3.37602907,3005.1,3005.0,15.97930491]
[1769571658275,3.37602907,3005.1,3005.0,15.60192491]
[1769571658678,3.37602907,3005.1,3005.0,12.58037099]
[1769571658879,3.37602907,3005.1,3005.0,11.54915571]
[1769571659081,3.37602907,3005.1,3005.0,11.42513885]
[1769571659275,3.37602907,3005.1,3005.0,11.04710885]
[1769571659578,3.37602907,3005.1,3005.0,10.29104885]
[1769571659773,3.28080072,3005.1,3005.0,9.57991885]
[1769571660267,1.54010472,3005.3,3005.1,0.22150257]
[1769571660472,1.54010472,3005.3,3005.1,6.09743259]
[1769571660678,1.54010472,3005.3,3005.1,0.09743259]
[1769571660879,4.1437002,3005.7,3005.1,1.86471425]
[1769571661078,0.16659,3005.7,3005.1,1.73856869]
[1769571661383,0.16659,3005.7,3005.0,9.45584054]
[1769571661681,0.16659,3005.7,3005.1,5.87385058]
[1769571661879,0.16659,3005.7,3005.3,1.86471425]
[1769571662270,6.6781102,3006.1,3005.6,1.86471425]
[1769571662470,0.16655,3006.3,3006.1,0.16102331]
[1769571662678,0.16655,3006.3,3006.0,1.74365096]
[1769571663082,0.16655,3006.3,3006.0,1.61814886]
[1769571663291,0.16655,3006.3,3005.8,1.86471425]
[1769571663789,0.30621488,3006.3,3005.8,0.00355569]
[1769571665191,0.16655,3006.3,3005.8,0.15127287]
[1769571665385,0.16655,3006.3,3005.8,2.01598712]
[1769571665585,0.16655,3006.3,3006.0,0.14771718]
[1769571665891,3.332,3006.7,3006.3,0.01647507]
[1769571666084,3.332,3006.7,3006.4,1.86471425]
[1769571666286,12.30104472,3006.8,3006.4,1.86471425]
[1769571666486,12.30104472,3006.8,3006.4,7.61472694]
[1769571666693,0.41790797,3006.8,3006.7,1.86471425]
[1769571666896,0.13966488,3007.4,3006.7,1.73506635]
[1769571667194,0.45985499,3007.2,3006.8,4.48385058]
[1769571667490,0.29334499,3007.1,3006.5,1.86471425]
[1769571667696,0.29334499,3007.1,3006.6,4.48385058]
[1769571667895,0.29624696,3007.1,3006.2,4.48385058]
[1769571668394,0.29933739,3006.8,3006.3,4.48385058]
[1769571668594,0.29933739,3006.8,3005.9,4.48385058]
[1769571669388,0.29933739,3006.8,3006.0,0.14771718]
[1769571669592,0.16652,3006.9,3006.0,0.14771718]
[1769571669900,0.16652,3006.9,3006.2,0.14771718]
[1769571670295,0.47704111,3006.9,3006.2,0.14771718]
[1769571671000,0.47704111,3006.9,3005.9,4.63156776]
[1769571671202,0.47704111,3006.9,3006.0,0.14771718]
[1769571671403,0.31272064,3006.8,3006.0,0.14771718]
[1769571672200,0.31272064,3006.8,3006.1,4.63156776]
[1769571672401,0.31272064,3006.8,3006.1,0.14771718]
[1769571673105,0.16652,3006.9,3006.3,0.14771718]
[1769571673303,0.00290197,3007.1,3006.3,0.14771718]
[1769571673503,0.00290197,3007.1,3006.0,4.48385058]
[1769571673504,0.00290197,3007.1,3006.5,0.14771718]
[1769571674303,0.00290197,3007.1,3006.6,4.63156776]
[1769571674505,0.00290197,3007.1,3006.6,0.14771718]
[1769571676106,2.91249,3007.4,3006.8,0.14771718]
[1769571676107,0.16649,3007.4,3006.8,0.14771718]
[1769571677204,0.16913772,3007.4,3006.8,0.14771718]
[1769571678294,0.16913772,3007.4,3007.0,0.14771718]
[1769571678695,0.3015022,3007.1,3006.0,0.14771718]
[1769571679006,0.3015022,3007.1,3006.1,0.14771718]
[1769571679204,0.30129914,3007.0,3006.0,4.48385058]
[1769571679905,0.30129914,3007.0,3006.0,4.63156776]
[1769571680106,0.30129914,3007.0,3006.1,0.14771718]
[1769571682905,0.16651,3007.1,3006.1,0.14771718]
[1769571683108,0.16651,3007.1,3006.3,0.14771718]
[1769571685109,0.28899682,3007.3,3006.5,0.73627565]
[1769571685407,0.00264772,3007.4,3006.5,0.73627565]
[1769571685603,0.00264772,3007.4,3005.8,0.00355569]
[1769571685604,0.00264772,3007.4,3006.7,0.73627565]
[1769571686704,0.00264772,3007.4,3006.9,0.73627565]
[1769571687312,0.00264772,3007.4,3007.0,5.22012623]
[1769571687509,0.00264772,3007.4,3007.0,0.73627565]
[1769571687706,0.00264772,3007.4,3006.1,4.48385058]
[1769571687707,0.78649018,3008.0,3007.2,0.73627565]
[1769571688013,0.78649018,3008.2,3007.2,0.73627565]
[1769571688208,0.78649018,3008.2,3007.4,0.73627565]
[1769571688713,0.79013859,3008.2,3007.4,0.73627565]
[1769571689815,0.00364841,3008.2,3007.5,5.22012623]
[1769571690017,0.00364841,3008.2,3007.5,0.73627565]
[1769571690208,0.79013859,3008.2,3007.5,0.73627565]
[1769571690709,0.79013859,3008.2,3007.6,4.48385058]
[1769571691011,0.79013859,3008.2,3007.2,0.73627565]
[1769571695905,0.79013859,3008.2,3007.4,0.73627565]
[1769571696822,0.00364841,3008.2,3007.6,0.73627565]
[1769571697320,0.00364841,3008.2,3007.7,5.22012623]
[1769571697510,0.00364841,3008.2,3007.7,0.73627565]
[1769571698411,0.79013859,3008.2,3007.8,4.48385058]
[1769571698616,0.79013859,3008.2,3007.1,0.73627565]
[1769571698617,0.79013859,3008.2,3007.2,0.73627565]
[1769571702118,0.78649018,3007.9,3007.3,4.48385058]
[1769571702314,0.95296018,3007.9,3006.5,0.73627565]
[1769571702515,0.95296018,3007.9,3006.6,0.73627565]
[1769571702721,0.16647,3007.9,3006.6,0.73627565]
[1769571703224,0.78649018,3008.1,3006.8,0.73627565]
[1769571704420,2.91911403,3008.0,3006.9,4.48385058]
[1769571704613,0.78649018,3008.1,3007.0,0.73627565]
[1769571705321,0.79013859,3008.2,3007.0,0.73627565]
[1769571705517,0.78649018,3008.0,3007.2,0.73627565]
[1769571705919,0.78649018,3008.0,3006.8,0.73627565]
[1769571706118,0.78649018,3008.0,3006.9,0.73627565]
[1769571709512,0.16645,3008.1,3007.1,0.73627565]
[1769571712325,0.95294018,3008.1,3007.1,0.73627565]
[1769571713028,0.95294018,3008.1,3007.2,4.48385058]
[1769571714729,0.65756016,3007.9,3007.2,4.48385058]
[1769571716631,0.65756016,3007.8,3007.2,4.48385058]
[1769571717731,0.16647,3007.9,3007.2,5.11570501]
[1769571718136,0.82403016,3007.9,3007.2,5.11570501]
[1769571719538,0.65756016,3007.8,3007.2,4.48385058]
[1769571720632,0.65756016,3007.8,3007.0,0.63185443]
[1769571720831,0.65756016,3007.8,3007.1,5.11570501]
[1769571721027,0.16647,3007.9,3007.1,5.11570501]
[1769571721236,0.65756016,3008.0,3007.2,0.63185443]
[1769571721536,0.00364841,3008.2,3007.2,0.63185443]
[1769571721736,2.91772792,3008.1,3007.4,0.63185443]
[1769571721938,0.00364841,3008.2,3007.4,0.63185443]
[1769571722136,2.9177014,3008.1,3007.5,4.48385058]
[1769571722438,0.82765857,3008.2,3007.5,4.48385058]
[1769571722639,3.57524725,3008.1,3007.5,4.48385058]
[1769571722937,0.65756016,3008.1,3007.5,4.48385058]
[1769571723138,0.82402016,3008.1,3007.5,4.48385058]
[1769571723440,0.65756016,3007.6,3006.9,3.96869722]
[1769571723635,0.65756016,3007.6,3006.8,4.60055165]
[1769571723845,0.65756016,3007.6,3006.8,0.63185443]
[1769571724744,0.16648,3007.7,3006.8,0.63185443]
[1769571724942,0.16648,3007.7,3006.5,4.97594526]
[1769571724943,0.16648,3007.7,3007.0,0.63185443]
[1769571725635,0.82404016,3007.7,3007.0,0.63185443]
[1769571726941,0.65756016,3007.6,3006.7,0.63185443]
[1769571727243,0.16648,3007.7,3006.7,0.63185443]
[1769571727442,0.16648,3007.7,3006.9,0.63185443]
[1769571728750,0.16648,3007.7,3007.1,0.63185443]
[1769571731549,0.16648,3007.7,3007.2,0.63185443]
[1769571732352,0.82404016,3007.7,3007.2,0.63185443]
[1769571733849,0.82404016,3007.7,3007.3,2.34496129]
[1769571734951,1.86495144,3008.2,3006.4,4.97594526]
[1769571734952,0.75206711,3007.3,3006.4,4.97594526]
[1769571735248,2.95219745,3007.2,3006.5,0.63185443]
[1769571735448,0.1665,3007.3,3006.5,0.63185443]
[1769571735650,2.95076698,3007.2,3006.5,0.63185443]
[1769571735843,0.1665,3007.3,3006.5,0.63185443]
[1769571736039,2.95074436,3007.2,3006.5,0.63185443]
[1769571736243,0.16651,3007.2,3006.5,0.63185443]
[1769571736643,0.80819524,3007.1,3006.2,0.63185443]
[1769571739750,0.16651,3007.1,3006.2,0.63185443]
[1769571740255,0.16651,3007.1,3006.4,0.63185443]
[1769571741951,0.16651,3007.1,3006.6,0.63185443]
[1769571742154,0.65756016,3007.5,3006.8,0.63185443]
[1769571742452,2.94577817,3007.4,3006.8,0.63185443]
[1769571742658,0.16648,3007.6,3006.9,2.49315746]
[1769571742859,2.9455515,3007.5,3006.9,0.63185443]
[1769571743046,0.16649,3007.5,3006.9,0.63185443]
[1769571744762,0.16649,3007.5,3007.0,0.97256499]
[1769571744949,0.89201307,3008.0,3007.0,0.97256499]
[1769571745154,2.94745133,3007.9,3007.0,0.97256499]
[1769571745365,3.8394644,3007.8,3007.0,0.97256499]
[1769571745564,2.94745133,3007.7,3007.0,0.97256499]
[1769571746456,0.16649,3007.5,3007.0,0.97256499]
[1769571754367,1.05850307,3007.5,3006.8,0.97256499]
[1769571757173,2.95378442,3007.4,3006.8,0.97256499]
[1769571757370,1.05850307,3007.5,3006.8,0.97256499]
[1769571757665,2.95393745,3007.4,3006.8,0.97256499]
[1769571757862,0.89201307,3007.5,3006.8,0.97256499]
[1769571758069,1.05851307,3007.3,3006.4,0.97256499]
[1769571758366,2.95369342,3007.2,3006.4,0.97256499]
[1769571758565,1.05851307,3007.3,3006.4,0.97256499]
[1769571760162,0.1665,3007.3,3006.4,0.97256499]